[Event "ESP-ch Teams Primera 2022"]
[Site "Sanxenxo Pontevedra"]
[Date "2022.09.18"]
[Round "2.22"]
[White "Martinez Ramirez, Erik"]
[Black "Gomez Dieguez, David"]
[Result "1/2-1/2"]
[ECO "C58"]
[WhiteElo "2181"]
[BlackElo "2332"]
[Annotator "ChessBase"]
[PlyCount "140"]
[EventDate "2022.09.17"]
[EventType "team-tourn"]
[EventCountry "ESP"]
[SourceTitle "playchess.com"]
[Source "ChessBase"]
[SourceQuality "1"]
[TimeControl "5400+30"]

1. e4 {[%emt 0:00:03]} e5 {[%emt 0:00:06]} 2. Nf3 {[%emt 0:00:16]} Nc6 {[%emt 0:00:04]} 3. Bc4 {[%emt 0:00:10]} Nf6 {[%emt 0:00:24]} 4. Ng5 {[%emt 0:00:24]} d5 {[%emt 0:00:06]} 5. exd5 {[%emt 0:00:07]} Na5 {[%emt 0:00:25]} 6. Bb5+ {[%emt 0:00:03]} c6 {[%emt 0:00:05]} 7. dxc6 {[%emt 0:00:08]} bxc6 {[%emt 0:00:04]} 8. Bd3 {[%emt 0:00:12]} Nd5 {[%emt 0:01:19]} 9. Nf3 {[%emt 0:00:18]} Nf4 {[%emt 0:04:06]} 10. O-O {[%emt 0:16:53]} Nxd3 {[%emt 0:00:14]} 11. cxd3 {[%emt 0:00:06]} Bd6 {[%emt 0:06:52]} 12. Re1 {[%emt 0:00:39]} O-O {[%emt 0:02:29]} 13. Nc3 {[%emt 0:03:12]} Re8 {[%emt 0:13:31]} 14. Ne4 {[%emt 0:00:27]} Bf8 {[%emt 0:02:41]} 15. Qc2 {[%emt 0:00:46]} Bg4 {[%emt 0:04:12]} 16. Re3 {[%emt 0:23:22]} f5 {[%emt 0:20:51]} 17. Nc5 {[%emt 0:01:40]} f4 {[%emt 0:00:18]} 18. Re1 {[%emt 0:08:42]} Bxf3 {[%emt 0:11:20]} 19. gxf3 {[%emt 0:00:08]} Qg5+ {[%emt 0:01:42]} 20. Kf1 {[%emt 0:01:22]} Qh5 {[%emt 0:00:49]} 21. Ke2 {[%emt 0:02:34]} Bxc5 {[%emt 0:05:13]} 22. Qxc5 {[%emt 0:00:07]} Nb7 {[%emt 0:00:02]} 23. Qxc6 {[%emt 0:01:02]} e4 {[%emt 0:02:54]} 24. dxe4 {[%emt 0:04:04]} Rxe4+ {[%emt 0:01:34]} 25. Qxe4 {[%emt 0:05:48]} Re8 {[%emt 0:00:06]} 26. Qxe8+ {[%emt 0:01:48]} Qxe8+ {[%emt 0:00:04]} 27. Kf1 {[%emt 0:00:06]} Qh5 {[%emt 0:04:24]} 28. Kg2 {[%emt 0:02:31]} Qg6+ {[%emt 0:01:41]} 29. Kf1 {[%emt 0:01:08]} Qd3+ {[%emt 0:00:12]} 30. Kg2 {[%emt 0:00:08]} Nd6 {[%emt 0:01:13]} 31. a4 {[%emt 0:01:23]} Nf5 {[%emt 0:04:02]} 32. Ra3 {[%emt 0:00:39]} Qd5 {[%emt 0:06:04]} 33. Rc3 {[%emt 0:09:41]} Nh4+ {[%emt 0:01:36]} 34. Kf1 {[%emt 0:00:36]} Nxf3 {[%emt 0:00:56]} 35. Re7 {[%emt 0:00:07]} h6 {[%emt 0:01:22]} 36. d4 {[%emt 0:03:13]} Nxd4 {[%emt 0:00:27]} 37. f3 {[%emt 0:01:42]} Qf5 {[%emt 0:03:37]} 38. Re8+ {[%emt 0:02:12]} Kh7 {[%emt 0:00:09]} 39. Re4 {[%emt 0:01:20]} Qh3+ {[%emt 0:00:25]} 40. Kg1 {[%emt 0:01:07]} Ne6 {[%emt 0:01:44]} 41. Bxf4 {[%emt 0:00:49]} Nxf4 42. Rxf4 Qd7 {[%emt 0:01:17]} 43. Rg4 {[%emt 0:03:56]} Qd1+ {[%emt 0:00:05]} 44. Kg2 {[%emt 0:00:07]} h5 {[%emt 0:00:59]} 45. Rg3 {[%emt 0:01:46]} Qd2+ {[%emt 0:00:06]} 46. Kh3 {[%emt 0:00:34]} Qd7+ {[%emt 0:00:01]} 47. Kg2 {[%emt 0:05:07]} g6 {[%emt 0:00:01]} 48. h4 {[%emt 0:00:45]} Qxa4 {[%emt 0:00:22]} 49. Ra3 {[%emt 0:00:50]} Qd7 {[%emt 0:00:46]} 50. Ra6 {[%emt 0:00:32]} Qd2+ {[%emt 0:00:02]} 51. Kh3 {[%emt 0:00:24]} Qd1 {[%emt 0:00:32]} 52. Rgxg6 {[%emt 0:00:51]} Qxf3+ {[%emt 0:00:07]} 53. Kh2 {[%emt 0:00:07]} Qe2+ {[%emt 0:00:36]} 54. Kg3 {[%emt 0:00:13]} Qxb2 {[%emt 0:00:57]} 55. Rh6+ {[%emt 0:00:32]} Kg7 {[%emt 0:00:04]} 56. Rag6+ {[%emt 0:00:13]} Kf7 {[%emt 0:00:01]} 57. Rg5 {[%emt 0:00:16]} Qc3+ {[%emt 0:00:50]} 58. Kh2 {[%emt 0:00:20]} Qd2+ {[%emt 0:00:06]} 59. Kh3 {[%emt 0:00:08]} Qd3+ {[%emt 0:00:57]} 60. Kh2 {[%emt 0:00:20]} a5 {[%emt 0:00:23]} 61. Rhxh5 {[%emt 0:00:44]} a4 {[%emt 0:00:26]} 62. Rf5+ {[%emt 0:00:16]} Ke6 {[%emt 0:00:52]} 63. Ra5 {[%emt 0:00:10]} Qe2+ {[%emt 0:01:42]} 64. Kg3 {[%emt 0:00:05]} Qd3+ {[%emt 0:00:09]} 65. Kg4 {[%emt 0:00:31]} a3 {[%emt 0:00:50]} 66. Rh6+ {[%emt 0:00:11]} Kf7 {[%emt 0:00:01]} 67. Rha6 {[%emt 0:01:41]} Qe4+ {[%emt 0:00:10]} 68. Kg5 {[%emt 0:00:40]} Qe3+ {[%emt 0:00:16]} 69. Kg4 {[%emt 0:00:24]} Qe4+ {[%emt 0:00:04]} 70. Kg5 {[%emt 0:00:05]} Qe3+ {[%emt 0:00:03]} 1/2-1/2

[Event "ESP-ch Teams Primera 2022"]
[Site "Sanxenxo Pontevedra"]
[Date "2022.09.18"]
[Round "2.23"]
[White "Del Prado Rodriguez, Xulio"]
[Black "Bosque Ortega, Xavier"]
[Result "1-0"]
[ECO "D15"]
[WhiteElo "2281"]
[BlackElo "2164"]
[Annotator "ChessBase"]
[PlyCount "73"]
[EventDate "2022.09.17"]
[EventType "team-tourn"]
[EventCountry "ESP"]
[SourceTitle "playchess.com"]
[Source "ChessBase"]
[SourceQuality "1"]
[TimeControl "5400+30"]

1. d4 {[%emt 0:00:23]} d5 {[%emt 0:00:47]} 2. c4 {[%emt 0:00:27]} c6 {[%emt 0:00:11]} 3. Nc3 {[%emt 0:00:12]} Nf6 {[%emt 0:00:11]} 4. Nf3 {[%emt 0:01:09]} Bf5 {[%emt 0:01:11]} 5. cxd5 {[%emt 0:02:44]} Nxd5 {[%emt 0:00:45]} 6. Qb3 {[%emt 0:00:39]} Nxc3 {[%emt 0:06:01]} 7. bxc3 {[%emt 0:00:06]} Qb6 {[%emt 0:00:18]} 8. Ne5 {[%emt 0:03:34]} Be6 {[%emt 0:19:14]} 9. Qc2 {[%emt 0:06:43]} f6 {[%emt 0:20:00]} 10. Nf3 {[%emt 0:08:44]} Bc4 {[%emt 0:08:47]} 11. Nd2 {[%emt 0:10:00]} Ba6 {[%emt 0:01:03]} 12. Rb1 {[%emt 0:03:18]} Qc7 {[%emt 0:02:31]} 13. c4 {[%emt 0:14:06]} Nd7 {[%emt 0:04:13]} 14. e3 {[%emt 0:01:57]} e5 {[%emt 0:08:52]} 15. Bd3 {[%emt 0:03:59]} exd4 {[%emt 0:07:26]} 16. exd4 {[%emt 0:01:23]} Bd6 {[%emt 0:06:02]} 17. Ne4 {[%emt 0:14:34]} O-O-O {[%emt 0:07:39]} 18. Nxd6+ {[%emt 0:04:48]} Qxd6 {[%emt 0:00:03]} 19. Be3 {[%emt 0:00:38]} c5 {[%emt 0:01:46]} 20. dxc5 {[%emt 0:03:35]} Nxc5 {[%emt 0:00:03]} 21. Bf5+ {[%emt 0:00:10]} Kb8 {[%emt 0:00:41]} 22. O-O {[%emt 0:00:18]} g6 {[%emt 0:01:44]} 23. Bg4 {[%emt 0:01:18]} Qd3 {[%emt 0:01:20]} 24. Qb2 {[%emt 0:03:52]} f5 {[%emt 0:01:02]} 25. Qe5+ {[%emt 0:01:32]} Qd6 {[%emt 0:00:38]} 26. Qxd6+ {[%emt 0:00:08]} Rxd6 {[%emt 0:00:01]} 27. Bxc5 {[%emt 0:01:05]} Rc6 {[%emt 0:00:09]} 28. Bd4 {[%emt 0:00:08]} Rd8 {[%emt 0:00:35]} 29. Be5+ {[%emt 0:00:10]} Kc8 {[%emt 0:00:31]} 30. Bf3 {[%emt 0:00:10]} Rxc4 {[%emt 0:00:35]} 31. Be2 {[%emt 0:00:45]} Ra4 {[%emt 0:00:11]} 32. Bxa6 {[%emt 0:02:16]} Rxa6 {[%emt 0:00:06]} 33. Rfc1+ {[%emt 0:00:05]} Kd7 {[%emt 0:01:01]} 34. Rxb7+ {[%emt 0:00:08]} Ke6 {[%emt 0:00:02]} 35. Re1 {[%emt 0:00:13]} Rd3 {[%emt 0:01:39]} 36. Bf4+ {[%emt 0:02:31]} Kd5 {[%emt 0:00:30]} 37. Rd7+ {[%emt 0:00:06]} 1-0

[Event "ESP-ch Teams Primera 2022"]
[Site "Sanxenxo Pontevedra"]
[Date "2022.09.18"]
[Round "2.24"]
[White "Castillo Escario, Yolanda"]
[Black "Redondo Arguelles, Graciela"]
[Result "1-0"]
[ECO "C03"]
[WhiteElo "2035"]
[BlackElo "1993"]
[Annotator "TA"]
[PlyCount "97"]
[EventDate "2022.09.17"]
[EventType "team-tourn"]
[EventCountry "ESP"]
[SourceTitle "playchess.com"]
[Source "ChessBase"]
[SourceQuality "1"]
[TimeControl "5400+30"]

{[%evp 11,97,11,21,11,16,8,8,11,14,8,16,-8,-11,-10,-7,-7,-4,-16,-9,-43,-38,-37,-18,-39,-13,-22,-8,-15,0,-14,-11,-11,0,-2,-6,0,0,-11,0,0,0,0,0,0,0,-11,-4,-12,0,-15,20,20,20,8,20,20,20,20,20,0,1654,1603,1595,1743,1504,495,6608,6324,6608,5606,29965,29969,6039,10577,5377,4456,29980,29981,29980,29980,29982,29983,29985,29984,29983,29984,29986,29987]} 1. e4 {[%emt 0:00:11]} e6 {[%emt 0:00:18]} 2. d4 {[%emt 0:00:27]} d5 {[%emt 0:00:12]} 3. Nd2 {[%emt 0:00:07]} Be7 {[%emt 0:00:33]} 4. Ngf3 {[%emt 0:00:23]} Nf6 {[%emt 0:01:19]} 5. Bd3 {[%emt 0:04:28]} c5 {[%emt 0:01:50]} 6. e5 {[%emt 0:05:41]} Nfd7 {[%emt 0:00:24]} 7. c3 {[%emt 0:00:20] C03: French Tarrasch: Unusual Black 3rd moves.} b6 {[%emt 0:01:30]} 8. O-O {[%emt 0:00:43]} Ba6 {[%emt 0:00:42]} 9. Bxa6 {[%emt 0:05:04] The position is equal.} Nxa6 {[%emt 0:00:08]} 10. Qe2 {[%emt 0:00:08]} Nc7 {[%emt 0:11:49]} 11. c4 {[%emt 0:03:06]} O-O {[%emt 0:03:37]} 12. Rd1 {[%emt 0:05:51]} Qc8 {[%emt 0:09:31]} 13. b3 {[%emt 0:11:26]} Qa6 {[%emt 0:21:17]} 14. Bb2 {[%emt 0:02:24] [#]} Rfd8 $146 {[%emt 0:00:28]} ({Predecessor:} 14... Rac8 15. a4 dxc4 16. bxc4 Nd5 17. Qe4 Nb4 18. d5 exd5 19. cxd5 Qd3 20. d6 Qxe4 21. Nxe4 {½-½ (31) Castelfranchi,C (2073)-Ivanovic,A (2107) Trieste 2012}) 15. a3 {[%emt 0:06:20]} Rac8 {[%emt 0:03:21]} 16. Rac1 {[%emt 0:01:01]} h6 {[%emt 0:03:29]} 17. h3 {[%emt 0:04:25]} Nf8 {[%emt 0:04:20]} 18. h4 {[%emt 0:05:23]} Rd7 {[%emt 0:08:16]} 19. g3 $1 {[%emt 0:05:29]} Rcd8 {[%emt 0:01:21]} 20. Nf1 {[%emt 0:08:38]} dxc4 {[%emt 0:05:53]} 21. Qxc4 {[%emt 0:08:21]} Qxc4 {[%emt 0:02:21]} 22. Rxc4 {[%emt 0:00:43]} Nb5 {[%emt 0:10:15]} 23. a4 {[%emt 0:01:05]} Nxd4 {[%emt 0:00:14]} 24. Nxd4 {[%emt 0:06:02]} cxd4 {[%emt 0:00:01]} (24... a6 {feels hotter.} 25. Rd2 b5 26. axb5 axb5 27. Nc6 bxc4 28. Nxd8 Bxd8 29. bxc4 Ba5) 25. Rcxd4 {[%emt 0:00:22]} Bc5 {[%emt 0:00:33]} 26. Rxd7 {[%emt 0:00:39]} Rxd7 {[%emt 0:00:01]} 27. Rxd7 {[%emt 0:00:01]} Nxd7 $11 {[%emt 0:00:07][%mdl 4096] Endgame KBN-KBN} 28. Nd2 {[%emt 0:00:08]} Bb4 {[%emt 0:03:11]} 29. Ne4 {[%emt 0:01:30]} Kf8 {[%emt 0:00:26]} 30. g4 {[%emt 0:06:08][%cal Bg3g4,Bg4g5,Bg5h6,Bh6h7][%mdl 32]} Nc5 {[%emt 0:03:26]} 31. Nxc5 Bxc5 {[%emt 0:00:01] KB-KB} 32. Kg2 {[%emt 0:00:34]} Ke7 {[%emt 0:00:04]} 33. f4 {[%emt 0:00:32]} g6 {[%emt 0:01:07]} 34. h5 {[%emt 0:01:00]} Kd7 {[%emt 0:02:21]} 35. g5 {[%emt 0:03:28]} gxh5 $2 {[%emt 0:00:19][%mdl 8192]} (35... Bf8 $11) 36. gxh6 $18 {[%emt 0:00:08] [#] Threatening mate with h7.} Bf8 {[%emt 0:00:05]} 37. h7 {[%emt 0:00:06]} Bg7 {[%emt 0:00:02]} 38. Kh3 {[%emt 0:00:56]} (38. Kg3 $142 Bh8 39. f5) 38... Ke7 {[%emt 0:02:16]} (38... Ke8 $142 39. Kh4 Bh8 40. Kxh5 Kf8) 39. Kh4 {[%emt 0:00:42]} Bh8 {[%emt 0:00:25]} 40. Ba3+ {[%emt 0:01:07]} Ke8 {[%emt 0:00:04]} 41. Kxh5 {[%emt 0:00:38]} Bg7 {[%emt 0:01:10]} 42. Bb4 {[%emt 0:00:21]} (42. Bd6 $142 a6 43. Kg5) 42... a6 {[%emt 0:00:13]} 43. Bd6 {[%emt 0:00:18]} b5 {[%emt 0:00:59]} 44. axb5 {[%emt 0:01:59] White mates.} axb5 {[%emt 0:00:01]} 45. Bc5 {[%emt 0:00:19]} Bh8 {[%emt 0:01:23]} 46. Kh6 {[%emt 0:00:08]} f6 {[%emt 0:00:12]} 47. Bd6 {[%emt 0:00:56]} Kd7 {[%emt 0:01:25]} 48. Kg6 {[%emt 0:00:57]} b4 {[%emt 0:00:46]} 49. Kf7 {[%emt 0:01:17] Weighted Error Value: White=0.21 (precise) /Black=0.46} 1-0

[Event "ESP-ch Teams Primera 2022"]
[Site "Sanxenxo Pontevedra"]
[Date "2022.09.19"]
[Round "3.1"]
[White "Alsina Leal, Daniel"]
[Black "Bacrot, Etienne"]
[Result "1/2-1/2"]
[ECO "C02"]
[WhiteElo "2525"]
[BlackElo "2647"]
[Annotator "TA"]
[PlyCount "40"]
[EventDate "2022.09.17"]
[EventType "team-tourn"]
[EventCountry "ESP"]
[SourceTitle "playchess.com"]
[Source "ChessBase"]
[SourceQuality "1"]
[TimeControl "5400+30"]

{[%evp 14,40,0,0,0,0,0,-23,0,0,0,0,0,0,0,0,0,0,0,0,0,0,0,0,0,0,0,0,0]} 1. e4 {[%emt 0:00:02]} e6 {[%emt 0:06:02]} 2. d4 {[%emt 0:00:14]} d5 {[%emt 0:00:11]} 3. e5 {[%emt 0:00:19]} c5 {[%emt 0:00:07]} 4. c3 {[%emt 0:00:04]} Nc6 {[%emt 0:00:10]} 5. Nf3 {[%emt 0:00:07]} Qb6 {[%emt 0:00:07]} 6. Be2 {[%emt 0:00:23]} cxd4 {[%emt 0:02:31]} 7. cxd4 {[%emt 0:00:07]} Nh6 {[%emt 0:00:14]} 8. Bxh6 $1 {[%emt 0:00:31][%mdl 4] [#] Bc1 is the strong threat. is more profitable than 8.Nc3 at the moment.} Qxb2 {[%emt 0:00:19] EASY. C02: French: Advance Variation.} 9. Nbd2 {[%emt 0:00:35] Hoping for Be3. EASY} gxh6 {[%emt 0:00:08] EASY} 10. O-O {[%emt 0:00:28] [#] CPLX 2.8 23 (Nd2-b3) (=8)} b6 $146 {[%emt 0:00:54] CPLX 2.9 23 (Nc6xd4) (=8). Black has an edge.} ({Predecessor:} 10... Bd7 11. Nb3 Qa3 12. Ne1 Be7 13. Qd2 Qb4 14. Qe3 Qa4 15. Nd3 Rg8 16. Rfd1 b6 {1-0 (38) Moussard,J (2670)-Bacrot,E (2648) Albi 2022}) 11. Rc1 {[%emt 0:01:42] CPLX 2.9 0 (Ra1-b1) (=6). The position is equal.} Bd7 {[%emt 0:02:36] CPLX 3.4} 12. Nb1 {[%emt 0:07:59][%cal Bd2b1,Bb1c3,Bc3b5][%mdl 32] BESTDEEP} Bg7 {[%emt 0:26:30] BESTDEEP} ({Don't play} 12... Qxa2 13. Nc3 Qa5 14. Nb5 $14) 13. Nc3 {[%emt 0:22:52] BESTDEEP} O-O {[%emt 0:00:50] CPLX 3.0} 14. Nb5 {[%emt 0:10:40] BESTDEEP} Nxe5 {[%emt 0:07:51] CPLX 3.3} 15. Rb1 $1 {[%emt 0:20:14] DEEPSTRONG} Nxf3+ {[%emt 0:00:20] EASY} 16. gxf3 {[%emt 0:00:19] RECAPT} Qxa2 {[%emt 0:00:17] [#] Strongly threatening ...Rfc8. EASY} 17. Ra1 $1 {[%emt 0:00:19] CPLX 3.2} Qb2 {[%emt 0:00:10] EASY} 18. Rb1 {[%emt 0:00:18] CPLX 3.4} Qa2 {[%emt 0:00:05] And now ...Rfc8 would win. EASY} 19. Ra1 $1 {[%emt 0:00:08] CPLX 3.2} Qb2 {[%emt 0:00:04] EASY} 20. Rb1 {[%emt 0:00:08] CPLX 3.4} Qa2 {[%emt 0:00:10] An even fight not without its subleties.  Weighted Error Value: White=0.02 (flawless) /Black=0.03 (flawless)} 1/2-1/2

[Event "ESP-ch Teams Primera 2022"]
[Site "Sanxenxo Pontevedra"]
[Date "2022.09.19"]
[Round "3.2"]
[White "Naiditsch, Arkadij"]
[Black "Lorenzo De La Riva, Lazaro"]
[Result "1-0"]
[ECO "A15"]
[WhiteElo "2666"]
[BlackElo "2430"]
[Annotator "TA"]
[PlyCount "41"]
[EventDate "2022.09.17"]
[EventType "team-tourn"]
[EventCountry "ESP"]
[SourceTitle "playchess.com"]
[Source "ChessBase"]
[SourceQuality "1"]
[TimeControl "5400+30"]

{[%evp 9,41,36,32,41,42,29,105,110,109,89,378,379,433,426,447,439,421,426,432,408,435,437,441,401,615,437,957,955,1002,992,1698,1562,1443,1420]} 1. c4 Nf6 2. Nf3 g6 3. g3 Bg7 4. Bg2 d6 5. d4 c6 6. O-O {E60: King's Indian: Unusual lines and Fianchetto Variation without Nc3.} Qa5 {[#] CPLX 2.0 1 (0-0) (=1)} 7. Re1 $146 {CPLX 2.1 13 (Bc1-d2) (=7)} ({Predecessor:} 7. h3 O-O 8. Nc3 e5 9. e4 exd4 10. Nxd4 Qc5 11. Nb3 Qb4 12. Re1 a5 13. Nd2 a4 14. a3 Qa5 15. Nf1 Ne8 16. Bd2 Be6 17. Ne3 Nd7 18. Qe2 Nc5 19. Red1 Nb3 {0-1 (35) Leiva Rodriguez,J (2391)-Ivanisevic,I (2604) Chess.com INT 2020}) 7... Qh5 {RELBLUND 76 (0-0) (=26)} (7... O-O $11 {remains equal.}) 8. e4 $16 {[%cal Be2e4,Be4e5,Be5f6,Bf6g7][%mdl 32] CPLX 2.2. White is better.} Bh3 {CPLX 2.3 0 (0-0) (=19)} 9. e5 {CPLX 2.5} Bxg2 $4 {[%mdl 8192] [#] RELBLUND 289 (d6xe5) (=73)} (9... dxe5 $16 {is a better defense.} 10. Rxe5 Bf5) 10. exf6 $18 {EASY} ({Weaker is} 10. Kxg2 dxe5 11. dxe5 (11. Rxe5 Qg4 $16) 11... Nfd7 $18) 10... Bxf3 {CPLX 4.3 54 (Bg7xf6) (=70)} 11. fxg7 {EASY} Rg8 {EASY} 12. Qb3 {EASY} Nd7 {CPLX 4.3} 13. Nd2 {CPLX 5.0} ({Wrong is} 13. Qxb7 $2 Rb8 14. Qxb8+ (14. Qxa7 {is a self mate.} Qh3) 14... Nxb8 $19) 13... Bg4 {CPLX 4.9} 14. Qxb7 {CPLX 3.6} Rb8 {CPLX 5.4} 15. Qxc6 {EASY} Rxg7 {CPLX 5.0 4 (f7-f6) (=39)} 16. Qxd6 {[%csl Ge1][%cal Rd6e7] [#] CPLX 3.7} f5 {CPLX 4.7 214 (f7-f6) (=53)} (16... f6 $142 17. b3 Kf8) 17. b3 {CPLX 4.8 178 (f2-f3) (=16). White is clearly winning.} Rb6 {EVAL 400 (Ke8-d8) (=80)} (17... Kd8 $142 18. Qa6 f4 19. Qxa7 Qh3 20. Qa5+ Ke8) 18. Qc7 {EVAL} f4 {BEVAL 47 (Rb6-b8) (=78)} 19. Ba3 {White threatens Qc8+ and mate. EVAL} e5 {BEVAL 400 (Rb6-b8) (=99)} 20. Rxe5+ {BEVAL 136 (Nd2-f3) (=22)} Nxe5 {BEVAL} 21. Qxg7 {Black got outplayed after the opening.  Weighted Error Value: White=0.31/Black=0.66} 1-0

[Event "ESP-ch Teams Primera 2022"]
[Site "Sanxenxo Pontevedra"]
[Date "2022.09.19"]
[Round "3.3"]
[White "Alonso Moyano, Jonathan"]
[Black "Ponomariov, Ruslan"]
[Result "0-1"]
[ECO "A45"]
[WhiteElo "2348"]
[BlackElo "2640"]
[Annotator "TA"]
[PlyCount "88"]
[EventDate "2022.09.17"]
[EventType "team-tourn"]
[EventCountry "ESP"]
[SourceTitle "playchess.com"]
[Source "ChessBase"]
[SourceQuality "1"]
[TimeControl "5400+30"]

{[%evp 9,88,-2,0,-27,-6,-1,0,0,7,12,31,0,0,0,0,-48,0,-27,-48,-60,-59,-63,-64,-74,7,-23,-25,-40,-40,-44,-39,-56,-62,-65,-54,-103,-96,-145,-178,-179,-178,-202,-203,-390,-394,-385,-422,-430,-429,-423,-411,-438,-442,-428,-427,-420,-422,-515,-500,-516,-506,-489,-420,-495,-344,-532,-533,-502,-495,-2346,-1770,-29975,-29976,-29990,-29989,-29990,-29991,-29996,-29997,-29997,-29998]} 1. d4 {[%emt 0:00:04]} Nf6 {[%emt 0:01:04]} 2. Bf4 {[%emt 0:00:11]} b6 {[%emt 0:06:25]} 3. f3 {[%emt 0:01:06]} e6 {[%emt 0:02:36]} 4. e4 {[%emt 0:00:13]} d5 {[%emt 0:00:18]} 5. Nc3 {[%emt 0:02:11]} Bb4 {[%emt 0:01:02] [#] CPLX 2.3 2 (d5xe4) (=2)} 6. e5 $146 {[%emt 0:05:31] CPLX 2.6 27 (Ng1-e2) (=27). A45: Trompowsky Attack.} (6. Nge2 $5 {[%cal Ra2a3]}) ({Predecessor:} 6. Bg5 h6 7. Bxf6 Qxf6 8. Nge2 dxe4 9. fxe4 Bb7 10. Qd3 Qh4+ 11. Ng3 Nc6 12. O-O-O {0-1 (34) Agrest,E (2568)-Markoja,B (2453) Chess.com INT 2021}) 6... Ng8 {[%emt 0:07:17] CPLX 2.5 21 (Nf6-d7) (=12)} 7. Nge2 {[%emt 0:09:34] CPLX 2.5 0 (Qd1-d2) (=14)} Ba6 {[%emt 0:03:37] CPLX 2.5 1 (Ng8-e7) (=8)} 8. a3 {[%emt 0:09:04] CPLX 2.9. The position is equal.} Be7 {[%emt 0:01:19] CPLX 3.2 7 (Bb4xc3) (=8)} 9. Qd2 {[%emt 0:05:41] BESTDEEP} h5 {[%emt 0:06:37] CPLX 2.4 19 (c7-c5) (=10)} 10. g3 {[%emt 0:12:48] CPLX 2.3 31 (0-0-0) (=12)} c5 {[%emt 0:02:04] BESTDEEP} 11. h4 {[%emt 0:01:46] CPLX 2.5 0 (0-0-0) (=10)} Nc6 {[%emt 0:01:34] CPLX 2.4 0 (Qd8-d7) (=7)} 12. Be3 {[%emt 0:09:32] CPLX 2.5 48 (0-0-0) (=15)} (12. O-O-O $11 {is superior.}) 12... Rc8 {[%emt 0:02:21] CPLX 2.5 48 (Nc6-a5) (=12)} (12... Na5 $15) 13. Bh3 {[%emt 0:07:42] CPLX 2.5 27 (0-0-0) (=17)} cxd4 {[%emt 0:04:47] CPLX 2.4} 14. Bxd4 {[%emt 0:00:31] RECAPT 12 (Ne2xd4) (=16)} Bc5 {[%emt 0:12:39] CPLX 2.6} 15. f4 {[%emt 0:01:42] CPLX 2.8 4 (0-0-0) (=15)} Nge7 {[%emt 0:00:44] Against f5. CPLX 2.8} 16. O-O-O {[%emt 0:04:03] CPLX 2.8 10 (Bd4-f2) (=14)} g6 {[%emt 0:00:54] RELBLUND 81 (Qd8-c7) (=15)} ({Much weaker is} 16... Nxd4 $6 17. Nxd4 Qd7 18. Kb1 $11) ({Black should try} 16... Qc7 $1 $17 {[%cal Oc5a3] Threatens to win with ...Bxa3!} 17. Bg1 Na5) 17. Kb1 {[%emt 0:04:22] CPLX 2.7 30 (g3-g4) (=16)} Qc7 {[%emt 0:04:12] With the idea ...Bxe2. CPLX 2.8 0 (Ba6xe2) (=14)} (17... Bxe2 $5 18. Nxe2 Nxd4 19. Nxd4 Bxd4 20. Qxd4 Qc7 $11) 18. Rh2 {[%emt 0:05:13] CPLX 2.8 15 (Bd4-g1) (=16)} Nf5 {[%emt 0:01:30] BESTDEEP} 19. Bxf5 {[%emt 0:00:18] CPLX 3.0} gxf5 {[%emt 0:00:04] RECAPT} 20. Qe3 {[%emt 0:04:51] CPLX 2.9 17 (Bd4-f2) (=15)} Be7 {[%emt 0:07:36] CPLX 3.0} 21. Qf3 {[%emt 0:02:10] CPLX 2.7 3 (Rh2-g2) (=14)} Bc4 {[%emt 0:03:52] CPLX 2.8 11 (b6-b5) (=11)} 22. a4 {[%emt 0:05:39] White is now going downhill. CPLX 3.0 49 (Bd4-f2) (=16)} (22. Bf2 $15 {deserves consideration.}) 22... a6 $17 {[%emt 0:02:04] BESTDEEP} 23. Be3 {[%emt 0:05:32] [#] CPLX 3.0 49 (Bd4-f2) (=18)} (23. Bf2 $142) 23... b5 $1 {[%emt 0:01:29][%cal Bb6b5,Bb5b4,Bb4b3][%mdl 32] BESTDEEP} 24. Nd4 {[%emt 0:00:18] [#] CPLX 3.4 1 (b2-b3) (=17)} Qa5 $1 {[%emt 0:06:04] DEEPSTRONG} 25. Nxc6 {[%emt 0:01:15] CPLX 3.8 24 (Rd1-g1) (=17)} Rxc6 {[%emt 0:00:05] RECAPT} 26. Bd2 $2 {[%emt 0:00:02] CPLX 3.4 187 (Be3-f2) (=25)} (26. Bf2) 26... b4 $19 {[%emt 0:03:02] EASY} 27. Ne2 {[%emt 0:00:39] [#] Strongly threatening Nd4. CPLX 3.1} Ba2+ $1 {[%emt 0:05:56][%cal Bc4a2,Ba2b1,Bb1e4][%mdl 544] DEEPSTRONG} 28. Kc1 {[%emt 0:00:45] DEEPSTRONG} Qxa4 {[%emt 0:00:05][%csl Ga4][%cal Rc6c2] BESTDEEP} 29. Nd4 {[%emt 0:00:26] EASY} Rc4 {[%emt 0:00:06] CPLX 4.4} 30. Be3 {[%emt 0:00:20] CPLX 4.5} b3 {[%emt 0:00:23] BESTDEEP} 31. c3 {[%emt 0:01:42] [#] EASY} Bb1 $1 {[%emt 0:00:18][%mdl 512] BESTDEEP} 32. Kd2 {[%emt 0:00:38] DEEPSTRONG} ({Not} 32. Kxb1 $2 Qa2+ 33. Kc1 Rxc3+ 34. Kd2 Qxb2+ 35. Ke1 Qxh2) 32... Be4 {[%emt 0:00:36] Really sharp! CPLX 5.3} 33. Qe2 {[%emt 0:00:17] CPLX 5.4 93 (Qf3-f2) (=22)} Rg8 {[%emt 0:03:19][%cal Bh8g8,Bg8g4,Bg4g3][%mdl 32] CPLX 5.1} 34. Bf2 {[%emt 0:00:35] CPLX 5.3 16 (Rh2-h3) (=22)} Bc5 {[%emt 0:03:17] CPLX 5.4} 35. Ke1 {[%emt 0:00:42] EASY} Rg4 {[%emt 0:02:13] CPLX 4.1 69 (Be4-c2) (=8)} 36. Kf1 {[%emt 0:00:22] CPLX 4.2 75 (Qe2-d2) (=23)} Bc2 {[%emt 0:01:23] CPLX 3.6 151 (Bc5xd4) (=13)} 37. Nxc2 {[%emt 0:00:33] CPLX 3.8 188 (Rh2-g2) (=28)} (37. Rg2 $142) 37... bxc2 {[%emt 0:00:04] RECAPT} 38. Rc1 {[%emt 0:00:04] CPLX 4.3} Bxf2 {[%emt 0:00:58] CPLX 4.0} 39. Rxf2 {[%emt 0:00:01] MISS-Qe2xf2 400 (Qe2xf2) (=38)} (39. Qxf2 $142 Qb5 40. Ke1) 39... Rxg3 {[%emt 0:00:18] ( -> ...Re4). EASY} 40. b3 {[%emt 0:00:34] RELBLUND 400 (Rc1xc2) (=49)} Qxb3 {[%emt 0:00:11] EASY. Black mates.} 41. Qxh5 {[%emt 0:00:07] MISS-Rc1xc2 14 (Rc1xc2) (=48)} Rcxc3 {[%emt 0:01:16] CPLX 5.8 1 (Qb3-a3) (=11)} 42. Qh8+ {[%emt 0:00:52] RELBLUND 1 (Qh5-e2) (=47)} Kd7 {[%emt 0:00:08] BESTDEEP} 43. Qf8 {[%emt 0:00:42] RELBLUND 5 (Qh8-h5) (=45)} Qc4+ {[%emt 0:00:09] EASY} 44. Re2 {[%emt 0:00:37] EASY} Qxf4+ {[%emt 0:00:19] Weighted Error Value: White=0.52/Black=0.13 (very precise)} 0-1